bitfinex/quotes_SOLUSD_20251223
["timestamp","ask_amount","ask_price","bid_price","bid_amount"]
[1766497692681,27.28,123.7,123.68,20.28192192]
[1766497692887,26.56,123.7,123.68,10.43767296]
[1766497693498,0.67,123.71,123.68,10.43767296]
[1766497693692,0.67,123.71,123.68,20.2818305]
[1766497694002,0.67,123.73,123.7,2.26904253]
[1766497694205,0.67,123.73,123.7,10.35294686]
[1766497694403,0.67,123.73,123.69,9.8436955]
[1766497695002,2.42904253,123.72,123.68,35.53201074]
[1766497695587,0.67,123.73,123.69,10.3534114]
[1766497697729,0.67,123.73,123.69,8.59436887]
[1766497698017,0.67,123.73,123.69,10.3534114]
[1766497698610,0.1,123.74,123.71,0.51]
[1766497698812,0.1,123.74,123.71,2.26904253]
[1766497698983,0.1,123.74,123.72,1.75904253]
[1766497700414,0.76,123.74,123.71,1.75904253]
[1766497700602,0.76,123.74,123.7,35.53041886]
[1766497700917,0.76,123.74,123.7,20.79041886]
[1766497701510,0.66,123.73,123.7,10.43767296]
[1766497701721,2.41904253,123.73,123.7,10.43767296]
[1766497702020,0.66,123.72,123.7,10.43767296]
[1766497704691,0.66,123.72,123.68,25.09415742]
[1766497705206,0.66,123.72,123.69,10.43767296]
[1766497705411,2.41904253,123.72,123.69,10.43767296]
[1766497705622,0.66,123.72,123.69,10.43767296]
[1766497706118,0.66,123.7,123.66,24.58546038]
[1766497706314,0.66,123.68,123.64,10.35655111]
[1766497706513,0.66,123.68,123.64,8.59750858]
[1766497706715,0.66,123.68,123.64,10.35655111]
[1766497706909,0.66,123.68,123.65,1.75904253]
[1766497708224,0.66,123.68,123.65,2.26904253]
[1766497709626,28.0,123.67,123.65,10.35638444]
[1766497710020,17.4452675,123.67,123.65,11.34616961]
[1766497710219,17.4452675,123.67,123.65,10.83616961]
[1766497710426,17.4452675,123.67,123.64,21.78420429]
[1766497710722,0.71,123.68,123.64,21.78420429]
[1766497713301,10.83447715,123.68,123.64,10.43767296]
[1766497713504,0.7,123.67,123.64,10.43767296]
[1766497713700,0.7,123.66,123.62,33.77658457]
[1766497713931,0.7,123.66,123.62,36.52541227]
[1766497714230,0.7,123.65,123.61,11.34841074]
[1766497714415,0.7,123.65,123.61,3.2588277]
[1766497714724,0.7,123.65,123.61,21.78625501]
[1766497714906,0.7,123.65,123.63,10.43767296]
[1766497718111,0.7,123.65,123.6,10.43767296]
[1766497718112,2.7488277,123.64,123.6,10.43767296]
[1766497718312,0.68,123.62,123.58,3.2588277]
[1766497718625,0.68,123.62,123.6,10.43767296]
[1766497720915,2.7488277,123.64,123.6,0.69]
[1766497721223,3.4188277,123.63,123.6,0.69]
[1766497721836,31.4188277,123.63,123.6,0.69]
[1766497722040,0.67,123.62,123.58,3.4388277]
[1766497722338,30.7488277,123.63,123.56,0.69]
[1766497722339,3.4188277,123.6,123.56,0.69]
[1766497722512,56.31050371,123.63,123.55,0.69]
[1766497722513,3.4188277,123.58,123.55,0.69]
[1766497722712,2.7488277,123.59,123.55,3.4388277]
[1766497722943,0.67,123.59,123.55,11.53266275]
[1766497723238,3.4188277,123.59,123.55,8.78383505]
[1766497723441,3.4188277,123.59,123.55,3.4388277]
[1766497724141,3.4188277,123.59,123.55,0.69]
[1766497725050,3.4188277,123.58,123.54,0.69]
[1766497725340,0.67,123.58,123.55,8.09386648]
[1766497725546,0.67,123.58,123.55,8.78386648]
[1766497726035,3.4188277,123.59,123.55,8.78386648]
[1766497726245,3.4188277,123.59,123.55,0.69]
[1766497726444,28.0,123.63,123.54,28.33061846]
[1766497726632,28.67,123.63,123.59,0.69]
[1766497726818,11.50760818,123.63,123.59,0.69]
[1766497727015,11.50760818,123.63,123.56,0.69]
[1766497727016,2.7488277,123.6,123.56,0.69]
[1766497727237,3.4188277,123.59,123.55,0.69]
[1766497727442,3.4388277,123.58,123.54,11.15767296]
[1766497727758,3.4388277,123.57,123.54,10.43767296]
[1766497728626,3.4388277,123.57,123.53,0.92]
[1766497729223,3.4388277,123.57,123.53,9.01508147]
[1766497730149,2.7488277,123.56,123.53,0.92]
[1766497730824,3.4188277,123.57,123.53,0.92]
[1766497731039,0.67,123.58,123.54,0.66]
[1766497731239,0.67,123.58,123.54,3.4088277]
[1766497731240,3.4188277,123.58,123.54,3.4088277]
[1766497731652,3.4188277,123.58,123.54,0.66]
[1766497731943,28.0,123.57,123.54,0.66]
[1766497733354,39.5217152,123.57,123.53,0.2]
[1766497733652,28.68,123.57,123.54,0.66]
[1766497733855,31.4288277,123.57,123.54,0.66]
[1766497734153,28.0,123.57,123.55,0.7]
[1766497734531,2.7488277,123.56,123.53,0.9]
[1766497734726,3.4088277,123.56,123.53,0.2]
[1766497734931,3.4088277,123.55,123.53,0.2]
[1766497735459,2.7488277,123.56,123.53,0.2]
[1766497735756,3.4088277,123.56,123.53,0.2]
[1766497736144,3.4088277,123.56,123.53,0.9]
[1766497736345,3.4088277,123.56,123.53,0.2]
[1766497737769,2.7488277,123.55,123.53,0.2]
[1766497737936,3.4088277,123.55,123.53,0.2]
[1766497740041,45.5288277,123.57,123.53,0.2]
[1766497740252,28.0,123.57,123.54,0.7]
[1766497740452,0.66,123.59,123.56,0.7]
[1766497740668,3.4088277,123.6,123.56,0.7]
[1766497740850,0.66,123.6,123.56,3.4488277]
[1766497741055,0.66,123.67,123.6,0.7]
[1766497741263,2.7488277,123.7,123.61,0.7]
[1766497741264,0.66,123.66,123.61,0.7]
[1766497741455,3.4088277,123.68,123.61,0.7]
[1766497741652,3.4088277,123.68,123.63,3.4488277]
[1766497741844,11.49431749,123.68,123.63,3.4488277]
[1766497742044,10.83431749,123.68,123.63,3.4488277]
[1766497742364,28.66,123.67,123.63,3.4488277]
[1766497742962,31.4088277,123.67,123.63,3.4488277]
[1766497743672,31.4088277,123.67,123.63,0.7]
[1766497744575,28.66,123.67,123.63,3.4488277]
[1766497745152,31.4088277,123.67,123.63,3.4488277]
[1766497745674,28.66,123.67,123.63,3.4488277]
[1766497745970,35.81011136,123.67,123.63,0.7]
[1766497746173,7.15011136,123.66,123.61,7.85011136]
[1766497746371,7.81011136,123.64,123.59,8.79086898]
[1766497746542,7.81011136,123.64,123.59,15.94098034]
[1766497746743,7.81011136,123.64,123.59,7.85011136]
[1766497746961,7.81011136,123.64,123.59,0.7]
[1766497747172,7.81011136,123.64,123.59,18.28778432]
[1766497747466,7.15011136,123.65,123.61,0.72]
[1766497747675,14.78,123.65,123.61,7.15011136]
[1766497747973,14.78,123.65,123.59,30.66475588]
[1766497747974,0.71,123.64,123.59,15.96116174]
[1766497748274,7.86011136,123.64,123.59,15.96116174]
[1766497748572,15.94813233,123.64,123.59,15.96116174]
[1766497748768,15.94813233,123.64,123.59,7.87011136]
[1766497748960,7.15011136,123.63,123.58,17.58778432]
[1766497749158,7.86011136,123.62,123.58,11.15767296]
[1766497749362,0.71,123.62,123.58,11.15767296]
[1766497749570,0.71,123.62,123.58,26.399689]
[1766497749748,7.86011136,123.62,123.58,0.72]
[1766497750667,0.71,123.61,123.57,14.76]
[1766497750876,7.86011136,123.61,123.57,14.76]
[1766497751378,7.86011136,123.61,123.57,15.48]
[1766497751958,0.71,123.61,123.57,22.63011136]
[1766497752677,0.71,123.61,123.57,30.72254049]
[1766497753579,0.71,123.61,123.58,0.72]
[1766497754177,22.64011136,123.63,123.59,0.72]
[1766497755167,7.86011136,123.62,123.57,8.09230454]
[1766497755368,7.86011136,123.62,123.58,0.72]
[1766497755573,7.15011136,123.62,123.58,0.72]
[1766497755775,7.86011136,123.61,123.56,26.40077645]
[1766497755974,8.80073953,123.6,123.56,11.15767296]
[1766497756172,7.86011136,123.58,123.54,11.15767296]
[1766497756867,7.86011136,123.58,123.54,19.2520185]
[1766497757278,0.71,123.58,123.54,26.40212986]
[1766497757860,7.86011136,123.57,123.53,0.2]
[1766497758056,15.95270706,123.57,123.53,0.2]
[1766497758569,7.86011136,123.57,123.53,0.92]
[1766497759359,15.49,123.6,123.56,0.72]
[1766497759670,7.86011136,123.6,123.56,0.72]
[1766497760181,0.71,123.6,123.56,0.72]
[1766497760490,8.80062277,123.6,123.56,0.72]
[1766497760786,0.71,123.59,123.55,7.87011136]
[1766497761086,7.15011136,123.59,123.54,8.09428153]
[1766497761264,0.71,123.58,123.54,7.15011136]
[1766497761474,0.71,123.58,123.54,7.87011136]
[1766497761782,0.71,123.58,123.54,15.96452014]
[1766497762189,8.09062277,123.6,123.55,15.24378011]
[1766497762190,7.86011136,123.6,123.55,15.24378011]
[1766497762360,7.86011136,123.6,123.55,15.96378011]
[1766497762561,7.86011136,123.59,123.55,0.72]
[1766497765181,15.95193046,123.59,123.55,0.72]
[1766497765390,0.71,123.58,123.54,0.72]
[1766497765889,7.15011136,123.57,123.53,0.2]
[1766497766071,21.93011136,123.58,123.54,0.72]
[1766497766989,7.15011136,123.58,123.54,0.72]
[1766497768063,2.75418806,123.58,123.54,0.72]
[1766497768287,11.55622764,123.58,123.54,0.72]
[1766497769332,2.75418806,123.57,123.54,0.72]
[1766497769811,3.46418806,123.57,123.54,0.72]
[1766497770012,8.09203958,123.58,123.53,0.2]
[1766497770013,2.4733355,123.56,123.53,0.2]
[1766497770308,10.56662631,123.56,123.53,0.2]
[1766497771889,1.7633355,123.55,123.53,0.2]
[1766497773402,8.80329081,123.56,123.53,0.2]
[1766497773603,1.7633355,123.55,123.53,0.2]
[1766497775293,2.4433355,123.54,123.53,0.2]
[1766497775904,2.4433355,123.55,123.53,0.2]
[1766497776494,0.68,123.55,123.53,0.2]
[1766497776719,1.7633355,123.54,123.53,0.2]
[1766497777024,2.4433355,123.54,123.52,0.2]
[1766497777614,8.09437617,123.55,123.52,0.2]
[1766497777923,1.7633355,123.54,123.52,0.2]
[1766497778301,17.0933355,123.53,123.49,0.2]
[1766497778518,1.7633355,123.51,123.49,0.2]
[1766497779207,9.85985152,123.51,123.49,0.2]
[1766497779613,8.64608686,123.52,123.49,0.2]
[1766497779813,1.7633355,123.51,123.49,0.2]
[1766497780338,1.7633355,123.5,123.49,0.2]
[1766497780826,2.3133355,123.51,123.49,0.2]
[1766497781000,1.7633355,123.5,123.49,0.2]
[1766497781197,1.7633355,123.5,123.48,0.2]
[1766497781405,1.7633355,123.49,123.48,0.2]
[1766497781605,1.7633355,123.49,123.46,0.69]
[1766497782714,16.5433355,123.5,123.46,0.69]
[1766497782897,1.7633355,123.51,123.46,8.09973557]
[1766497783220,1.7633355,123.51,123.47,0.69]
[1766497784130,0.35,123.54,123.5,12.20100846]
[1766497784311,8.44360922,123.56,123.51,0.69]
[1766497784513,1.7633355,123.55,123.51,0.69]
[1766497784910,1.7633355,123.54,123.51,0.69]
[1766497785619,22.87348599,123.56,123.51,0.69]
[1766497785811,14.78,123.57,123.52,0.69]
[1766497786016,1.7633355,123.58,123.53,1.7633355]
[1766497786209,1.7633355,123.6,123.56,0.69]
[1766497786604,1.7633355,123.61,123.57,0.69]
[1766497787328,9.85402455,123.6,123.57,0.69]
[1766497787915,12.49600021,123.6,123.55,11.12767296]
[1766497788112,4.40531116,123.58,123.55,11.12767296]
[1766497788529,4.40531116,123.58,123.55,0.69]
[1766497789218,14.78,123.59,123.53,0.69]
[1766497789422,4.40531116,123.56,123.53,0.69]
[1766497790923,4.40531116,123.54,123.51,0.69]
[1766497792438,4.40531116,123.53,123.49,0.69]
[1766497792648,8.09465541,123.54,123.49,0.69]
[1766497792649,4.40531116,123.52,123.49,0.69]
[1766497792824,4.40531116,123.51,123.49,0.69]
[1766497793144,4.40531116,123.51,123.47,11.12767296]
[1766497793514,4.40531116,123.52,123.49,0.69]
[1766497794035,4.40531116,123.53,123.5,0.69]
[1766497794939,4.40531116,123.54,123.5,0.69]
[1766497795136,12.49932123,123.55,123.51,0.69]
[1766497795357,27.27932123,123.55,123.51,0.69]
[1766497796018,28.0,123.57,123.52,0.69]
[1766497796216,47.18531116,123.57,123.53,0.69]
[1766497796416,32.40531116,123.57,123.53,0.69]
[1766497796622,28.0,123.57,123.54,0.69]
[1766497796832,28.0,123.57,123.55,0.69]
[1766497797540,32.40531116,123.57,123.53,0.69]
[1766497798344,40.49796881,123.57,123.53,0.69]
[1766497799149,4.40531116,123.56,123.53,0.69]
[1766497800532,12.49870409,123.56,123.51,14.84298412]
[1766497800738,12.49870409,123.56,123.51,15.53298412]
[1766497801048,12.49870409,123.56,123.51,11.12767296]
[1766497801049,4.40531116,123.55,123.51,11.12767296]
[1766497802456,8.09339293,123.56,123.52,0.69]
[1766497802624,14.78,123.56,123.52,0.69]
[1766497802827,19.18531116,123.56,123.52,0.69]
[1766497803633,19.53531116,123.56,123.52,0.69]
[1766497804643,28.0,123.57,123.53,4.40531116]
[1766497804831,25.84,123.57,123.55,14.84298412]
[1766497805155,25.84,123.57,123.55,10.43767296]
[1766497805650,5.08531116,123.58,123.54,4.40531116]
[1766497805841,0.68,123.58,123.54,4.40531116]
[1766497806049,0.68,123.58,123.53,15.15]
[1766497806050,13.17735053,123.58,123.53,15.15]
[1766497806241,13.17735053,123.58,123.53,19.55531116]
[1766497806639,13.1962073,123.6,123.56,4.40531116]
[1766497806960,0.7,123.6,123.57,4.40531116]
[1766497807159,0.7,123.6,123.56,4.79531116]
[1766497807664,0.7,123.59,123.55,4.40531116]
[1766497810959,12.4966772,123.59,123.54,4.79531116]
[1766497811162,5.10531116,123.57,123.52,12.89089197]
[1766497811461,5.10531116,123.57,123.53,10.43767296]
[1766497811968,5.10531116,123.57,123.52,12.89089197]
[1766497813266,5.10531116,123.57,123.53,14.84298412]
[1766497814070,0.7,123.57,123.53,14.84298412]
[1766497814269,0.7,123.57,123.54,4.40531116]
[1766497814770,0.7,123.57,123.53,15.23298412]
[1766497815480,4.40531116,123.56,123.51,4.79531116]
[1766497815655,0.7,123.55,123.51,4.79531116]
[1766497815966,4.40531116,123.56,123.49,20.24351126]
[1766497815967,43.10412865,123.57,123.49,0.39]
[1766497816158,5.10531116,123.55,123.51,10.43767296]
[1766497816769,0.7,123.54,123.51,10.43767296]
[1766497817947,0.7,123.54,123.5,10.43767296]
[1766497817948,0.7,123.52,123.5,10.43767296]
[1766497818147,0.7,123.52,123.47,12.5042238]
[1766497818148,0.7,123.51,123.47,12.5042238]
[1766497818462,5.10531116,123.51,123.47,12.5042238]
[1766497819060,0.7,123.51,123.48,12.50363496]
[1766497819265,5.10531116,123.52,123.48,4.40531116]
[1766497819469,5.10531116,123.52,123.47,8.48884134]
[1766497819676,5.10531116,123.52,123.48,4.40531116]
[1766497819853,5.10531116,123.52,123.48,12.50376615]
[1766497820874,0.7,123.52,123.48,12.50376615]
[1766497821073,0.7,123.52,123.48,4.40531116]
[1766497821277,5.10531116,123.52,123.48,4.40531116]
[1766497822072,0.7,123.52,123.48,4.40531116]
[1766497822274,4.40531116,123.5,123.46,10.43767296]
[1766497822481,0.7,123.49,123.46,10.43767296]
[1766497823365,0.7,123.49,123.46,18.53743794]
[1766497823567,0.7,123.49,123.46,22.9427491]
[1766497823769,5.10531116,123.5,123.46,22.9427491]
[1766497824490,5.10531116,123.5,123.46,14.84298412]
[1766497824654,0.7,123.5,123.46,22.94277344]
[1766497824853,5.10531116,123.5,123.46,22.94277344]
[1766497825064,5.10531116,123.5,123.46,22.94269397]
[1766497825264,0.7,123.5,123.46,22.94269397]
[1766497825679,4.40531116,123.52,123.47,4.40531116]
[1766497825868,0.7,123.52,123.48,4.79531116]
[1766497827384,0.7,123.52,123.48,12.89365647]
[1766497827685,0.7,123.53,123.49,14.84298412]
[1766497827865,0.7,123.55,123.5,4.40531116]
[1766497828071,5.10531116,123.55,123.5,0.39]
[1766497828270,5.10531116,123.52,123.5,10.43767296]
[1766497828571,5.10531116,123.52,123.49,10.43767296]
[1766497828778,0.7,123.52,123.49,10.43767296]
[1766497829184,0.7,123.54,123.5,4.40531116]
[1766497829512,5.10531116,123.54,123.49,23.33077591]
[1766497829676,5.10531116,123.53,123.49,15.23298412]
[1766497829990,5.10531116,123.53,123.49,14.84298412]
[1766497830391,0.7,123.52,123.49,10.43767296]
[1766497831887,4.40531116,123.51,123.46,12.50463423]
[1766497832078,7.8699388,123.5,123.46,8.09932307]
[1766497832393,7.8699388,123.5,123.45,26.29774695]
[1766497832592,7.8699388,123.5,123.45,19.12780815]
[1766497832780,7.8699388,123.5,123.45,26.29774695]
[1766497832976,0.7,123.5,123.46,7.1699388]
[1766497833188,7.8299388,123.5,123.45,11.02767296]
[1766497833490,0.66,123.49,123.45,11.02767296]
[1766497833880,0.66,123.49,123.45,19.12805468]
[1766497834074,0.66,123.49,123.45,26.29799348]
[1766497835990,0.66,123.49,123.45,19.12805468]
[1766497836291,7.8299388,123.49,123.45,19.12805468]
[1766497836594,0.66,123.49,123.45,19.12805468]
[1766497837397,0.66,123.49,123.45,26.29799348]
[1766497837691,0.66,123.49,123.45,18.19761176]
[1766497837899,0.67,123.47,123.45,0.2]
[1766497839189,0.67,123.48,123.45,0.2]
[1766497839481,0.67,123.48,123.45,7.3699388]
[1766497839898,0.67,123.48,123.45,0.2]
[1766497840072,7.8399388,123.48,123.45,0.2]
[1766497840271,7.1699388,123.48,123.45,0.2]
[1766497840497,0.67,123.47,123.45,0.2]
[1766497842196,7.8399388,123.48,123.45,0.2]
[1766497843271,0.67,123.47,123.45,0.2]
[1766497843482,7.8399388,123.48,123.45,0.2]
[1766497844191,0.67,123.48,123.45,0.2]
[1766497844526,7.1699388,123.48,123.45,0.2]
[1766497844713,0.67,123.47,123.45,0.2]
[1766497845305,7.8399388,123.49,123.45,0.2]
[1766497845503,0.67,123.48,123.45,0.2]
[1766497847325,0.67,123.47,123.45,0.2]
[1766497847834,0.67,123.46,123.42,18.9298108]
[1766497847999,0.67,123.46,123.42,26.0997496]
[1766497848200,7.8399388,123.47,123.43,0.59]
[1766497850417,7.8399388,123.48,123.44,0.59]
[1766497850716,7.8399388,123.48,123.44,7.7599388]
[1766497851024,7.8399388,123.48,123.44,0.59]
[1766497851226,7.1699388,123.48,123.44,0.59]
[1766497851428,0.67,123.47,123.43,15.861607]
[1766497851618,7.8399388,123.47,123.43,15.861607]
[1766497851819,0.67,123.46,123.42,25.70985805]
[1766497852022,0.67,123.46,123.42,26.29985805]
[1766497852404,8.76785284,123.49,123.44,7.1699388]
[1766497852604,0.67,123.48,123.44,7.7599388]
[1766497853099,0.67,123.48,123.44,7.1699388]
[1766497853299,30.73740446,123.5,123.46,0.59]
[1766497853498,22.89746566,123.5,123.45,7.1699388]
[1766497853700,0.67,123.49,123.42,11.02767296]
[1766497853922,3.42925166,123.47,123.43,0.59]
[1766497854123,0.67,123.47,123.43,0.59]
[1766497854321,3.42925166,123.47,123.43,0.59]
[1766497855326,0.67,123.47,123.43,0.59]
[1766497855527,3.42925166,123.47,123.43,0.59]
[1766497856026,0.67,123.47,123.43,0.59]
[1766497856326,3.42925166,123.47,123.43,8.69155848]
[1766497856925,0.67,123.47,123.43,11.45081014]
[1766497858734,2.75925166,123.48,123.44,0.59]
[1766497859034,3.42925166,123.48,123.44,0.59]
[1766497860024,0.67,123.48,123.45,2.75925166]
[1766497860225,0.67,123.48,123.44,8.69098505]
[1766497860537,0.67,123.48,123.44,11.45023671]
[1766497861631,0.67,123.48,123.44,31.70299108]
[1766497861828,2.75925166,123.51,123.46,0.59]
[1766497862015,2.75925166,123.51,123.44,43.13373942]
[1766497862016,0.67,123.51,123.47,3.34925166]
[1766497862421,0.67,123.51,123.47,11.02767296]
[1766497862629,2.75925166,123.49,123.47,10.43767296]
[1766497862831,0.67,123.48,123.47,10.43767296]
[1766497863535,0.67,123.47,123.41,0.2]
[1766497863744,2.75925166,123.44,123.41,8.89287854]
[1766497863921,2.75925166,123.43,123.41,0.2]
[1766497864120,2.75925166,123.41,123.4,0.2]
[1766497864322,0.67,123.41,123.4,0.2]
[1766497865836,0.67,123.43,123.4,8.30369254]
[1766497866320,3.42925166,123.44,123.4,9.01369254]
[1766497866940,0.67,123.42,123.4,0.2]
[1766497867142,0.67,123.4,123.38,0.2]
[1766497867342,0.67,123.39,123.38,0.2]
[1766497867643,0.67,123.4,123.37,8.10562543]
[1766497867829,2.75925166,123.43,123.38,10.86426879]
[1766497868029,2.75925166,123.43,123.38,8.10501713]
[1766497868223,3.42925166,123.43,123.39,3.44925166]
[1766497868413,0.67,123.43,123.39,3.44925166]
[1766497868617,3.42925166,123.43,123.39,0.69]
[1766497869042,3.42925166,123.42,123.38,8.79501713]
[1766497869220,3.42925166,123.41,123.37,25.21767296]
[1766497869425,0.67,123.41,123.37,25.21767296]
[1766497869631,3.42925166,123.41,123.37,10.43767296]
[1766497869830,0.67,123.41,123.37,10.43767296]
[1766497870038,3.42925166,123.41,123.37,10.43767296]
[1766497870228,0.67,123.39,123.37,10.43767296]
[1766497870735,0.67,123.39,123.36,0.2]
[1766497870938,3.42925166,123.41,123.36,11.75553421]
[1766497871138,0.67,123.41,123.37,0.69]
[1766497871548,3.42925166,123.41,123.37,0.69]
[1766497872157,0.67,123.4,123.36,11.75553421]
[1766497872345,8.10251643,123.42,123.37,3.44925166]
[1766497872346,3.42925166,123.42,123.37,3.44925166]
[1766497872545,0.67,123.42,123.38,0.69]
[1766497872739,3.42925166,123.42,123.38,0.69]
[1766497873053,3.42925166,123.42,123.38,8.79487346]
[1766497873255,28.0,123.41,123.38,8.79487346]
[1766497873446,28.67,123.41,123.38,8.10487346]
[1766497874019,0.67,123.4,123.37,8.10544275]
[1766497874221,0.67,123.4,123.37,18.54311571]
[1766497874525,0.67,123.4,123.37,10.43767296]
[1766497874746,3.42925166,123.4,123.37,10.43767296]
[1766497875730,2.75925166,123.38,123.36,0.2]
[1766497875940,2.75925166,123.37,123.36,0.2]
[1766497876138,2.75925166,123.37,123.31,3.10841074]
[1766497876531,3.42830682,123.4,123.33,0.69]
[1766497876846,2.75925166,123.37,123.33,0.69]
[1766497877044,2.75925166,123.36,123.33,0.69]
[1766497877454,2.75925166,123.35,123.33,0.69]
[1766497877841,8.10612402,123.37,123.33,0.69]
[1766497878040,2.75925166,123.35,123.33,0.69]
[1766497878235,2.75925166,123.35,123.31,8.10961783]
[1766497878444,2.75925166,123.35,123.32,0.69]
[1766497878643,2.75925166,123.35,123.32,10.43767296]
[1766497879256,2.75925166,123.34,123.32,10.43767296]
[1766497879442,2.75925166,123.35,123.32,10.43767296]
[1766497879845,2.75925166,123.38,123.32,21.30587176]
[1766497880055,2.75925166,123.4,123.35,2.75925166]
[1766497880450,2.75925166,123.39,123.33,2.75925166]
[1766497880764,0.7,123.39,123.35,0.7]
[1766497880939,3.45925166,123.39,123.35,0.7]
[1766497881144,8.80259783,123.42,123.35,2.75925166]
[1766497881353,8.80176882,123.43,123.38,0.7]
[1766497881660,2.75925166,123.42,123.38,0.7]
[1766497881842,3.45925166,123.42,123.38,0.7]
[1766497882044,2.75925166,123.41,123.38,0.7]
[1766497882442,2.75925166,123.41,123.37,11.13767296]
[1766497882642,2.75925166,123.39,123.37,10.43767296]
[1766497883441,3.43925166,123.4,123.37,18.54335509]
[1766497883654,0.68,123.42,123.37,11.13767296]
[1766497883832,2.75925166,123.4,123.37,11.13767296]
[1766497884033,2.75925166,123.38,123.33,0.72]
[1766497884250,2.75925166,123.38,123.34,0.72]
[1766497884469,3.40925166,123.38,123.34,0.72]
[1766497885159,2.75925166,123.36,123.32,23.60870181]
[1766497885330,2.75925166,123.35,123.33,10.43767296]
[1766497885536,2.75925166,123.35,123.32,0.72]
[1766497885737,2.75925166,123.35,123.32,11.15767296]
[1766497885942,7.18742895,123.35,123.32,11.15767296]
[1766497886965,7.18742895,123.33,123.28,0.72]
[1766497887138,7.18742895,123.32,123.28,8.83133933]
[1766497887335,25.23767296,123.35,123.28,0.72]
[1766497887559,7.18742895,123.32,123.28,0.72]
[1766497888069,7.18742895,123.32,123.28,8.83161178]
[1766497888237,25.23767296,123.35,123.28,8.83161178]
[1766497888437,7.18742895,123.32,123.28,8.83161178]
[1766497888748,7.18742895,123.34,123.29,7.90742895]
[1766497888963,7.18742895,123.36,123.31,0.72]
[1766497889281,7.18742895,123.37,123.32,0.72]
[1766497889579,7.18742895,123.36,123.32,0.72]
[1766497889955,7.18742895,123.35,123.32,0.72]
[1766497890160,7.18742895,123.34,123.31,10.43767296]
[1766497890780,7.18742895,123.34,123.31,11.11767296]
[1766497891352,28.0,123.37,123.32,0.7]
[1766497891550,7.18742895,123.36,123.32,0.7]
[1766497891873,28.0,123.37,123.34,7.88742895]
[1766497892047,28.0,123.37,123.36,0.7]
[1766497892249,8.10345925,123.41,123.36,0.7]
[1766497892250,7.18742895,123.4,123.36,0.7]
[1766497892667,7.18742895,123.4,123.35,7.18742895]
[1766497892668,7.18742895,123.39,123.35,10.43767296]
[1766497892991,7.18742895,123.38,123.35,11.11767296]
[1766497894078,4.42122857,123.38,123.35,11.11767296]
[1766497894654,4.42122857,123.39,123.35,11.11767296]
[1766497894854,12.5257003,123.39,123.35,11.11767296]
[1766497895056,8.10447173,123.39,123.35,11.11767296]
[1766497895275,4.42122857,123.38,123.35,11.11767296]
[1766497895478,32.42122857,123.38,123.35,11.11767296]
[1766497896973,28.0,123.38,123.35,11.11767296]
[1766497897995,32.42122857,123.38,123.35,11.11767296]
[1766497898195,36.10508495,123.38,123.35,0.68]
[1766497898502,28.0,123.38,123.35,0.68]
[1766497901583,28.0,123.38,123.36,0.7]
[1766497903697,40.52629598,123.38,123.34,0.7]
[1766497903883,36.10506741,123.38,123.34,0.7]
[1766497904084,40.52629598,123.38,123.34,0.7]
[1766497906180,32.42122857,123.38,123.34,0.7]
[1766497906679,32.42122857,123.38,123.35,0.7]
[1766497906680,28.0,123.38,123.35,0.7]
[1766497906903,27.28,123.38,123.37,0.7]
[1766497907213,0.67,123.37,123.33,11.13767296]
[1766497907505,5.09122857,123.37,123.33,11.13767296]
[1766497907713,4.42122857,123.36,123.33,11.13767296]
[1766497908020,2.43908724,123.36,123.33,10.43767296]
[1766497908404,1.76908724,123.36,123.33,10.43767296]
[1766497908588,1.76908724,123.37,123.34,0.7]
[1766497908788,1.76908724,123.38,123.34,0.7]
[1766497909107,1.76908724,123.38,123.34,8.80766067]
[1766497909303,8.10402173,123.4,123.35,0.7]
[1766497909692,1.76908724,123.39,123.35,0.7]